bitfinex/quotes_SOLUSD_20240712
["timestamp","ask_amount","ask_price","bid_price","bid_amount"]
[1720752793146,21.61286632,138.51,138.47,6.1099]
[1720752793322,7.55286632,138.51,138.48,14.06]
[1720752793952,7.55286632,138.51,138.47,6.1099]
[1720752794130,14.06,138.5,138.46,15.9183]
[1720752794325,14.06,138.49,138.44,20.6222]
[1720752794634,14.23,138.48,138.43,29.1788]
[1720752794820,14.06,138.47,138.43,15.1188]
[1720752795523,0.34,138.48,138.43,16.5627054]
[1720752795831,14.4,138.48,138.43,30.6227054]
[1720752797045,14.06,138.49,138.43,29.1788]
[1720752797258,14.29532992,138.48,138.43,29.1788]
[1720752797445,14.06,138.48,138.43,15.1188]
[1720752798132,14.23,138.47,138.43,15.1188]
[1720752798338,14.4,138.47,138.43,15.1188]
[1720752798640,14.06,138.46,138.43,15.1188]
[1720752798844,14.06,138.46,138.41,20.6222]
[1720752799749,14.06,138.5,138.44,14.06]
[1720752800048,14.29719866,138.49,138.45,1.44430058]
[1720752800336,14.06,138.49,138.46,1.44419626]
[1720752800538,14.06,138.49,138.44,14.06]
[1720752801119,14.06,138.49,138.43,14.06]
[1720752801931,7.55286632,138.51,138.44,15.2742]
[1720752802137,14.06,138.49,138.44,15.2742]
[1720752802464,14.06,138.48,138.44,15.2742]
[1720752802757,14.06,138.46,138.44,15.2742]
[1720752803538,14.06,138.46,138.41,21.7476]
[1720752803738,14.06,138.45,138.41,21.7476]
[1720752805563,14.06,138.44,138.41,21.7476]
[1720752806744,21.2844,138.42,138.35,15.4543]
[1720752807048,14.06,138.37,138.33,6.0718]
[1720752808534,0.17,138.38,138.33,6.0718]
[1720752809350,0.17,138.41,138.33,6.0718]
[1720752809539,0.34,138.41,138.33,6.0718]
[1720752811153,7.5649,138.41,138.33,6.0718]
[1720752811868,0.34,138.41,138.33,6.0718]
[1720752812955,0.34,138.41,138.31,16.21]
[1720752812956,11.52753497,138.41,138.31,16.21]
[1720752813161,7.55706812,138.4,138.31,16.21]
[1720752813367,0.17,138.39,138.31,16.21]
[1720752813669,28.49,138.39,138.31,16.21]
[1720752814751,35.7159,138.39,138.31,16.21]
[1720752815635,28.49,138.39,138.31,16.21]
[1720752817369,28.49,138.39,138.32,1.44558449]
[1720752817658,28.49,138.39,138.33,1.44555597]
[1720752818263,0.34,138.39,138.33,1.44555597]
[1720752818563,0.34,138.39,138.34,1.44545148]
[1720752818762,0.34,138.39,138.32,1.44550337]
[1720752819261,0.34,138.39,138.31,16.21]
[1720752821457,28.49,138.39,138.31,16.21]
[1720752823564,7.55858793,138.38,138.31,16.21]
[1720752823764,0.34,138.37,138.31,16.21]
[1720752825461,28.49,138.37,138.28,15.8426]
[1720752828566,14.08,138.33,138.28,29.9226]
[1720752828861,14.08,138.33,138.28,15.8426]
[1720752829245,14.08,138.33,138.28,29.9226]
[1720752830653,14.08,138.33,138.28,15.8426]
[1720752830854,14.08,138.32,138.28,15.8426]
[1720752831252,0.17,138.34,138.28,15.8426]
[1720752831450,14.08,138.32,138.28,15.8426]
[1720752832863,14.08,138.32,138.29,1.44248498]
[1720752833372,14.08,138.32,138.3,1.44238067]
[1720752833560,0.17,138.34,138.3,1.44238067]
[1720752833763,14.25,138.34,138.3,1.44238067]
[1720752834673,14.25,138.34,138.29,1.44238067]
[1720752834984,14.08,138.33,138.3,1.44335177]
[1720752835361,7.56040417,138.36,138.29,14.08]
[1720752835765,14.08,138.35,138.29,14.08]
[1720752836155,14.08,138.34,138.29,14.08]
[1720752837489,14.08,138.34,138.28,15.8426]
[1720752839773,14.08,138.34,138.29,1.44468935]
[1720752839980,14.08,138.34,138.3,1.44458488]
[1720752840879,14.08,138.34,138.31,1.44448043]
[1720752841060,14.08,138.34,138.29,1.44448043]
[1720752841260,14.08,138.34,138.3,1.44437629]
[1720752841479,0.17,138.35,138.3,1.44437629]
[1720752841480,14.08,138.33,138.3,1.44437629]
[1720752841657,14.08,138.33,138.28,15.8426]
[1720752841860,14.08,138.32,138.28,15.8426]
[1720752842379,14.25,138.33,138.29,1.44593532]
[1720752842684,0.17,138.32,138.3,1.44583076]
[1720752842974,14.08,138.33,138.3,1.44583076]
[1720752843481,14.08,138.32,138.28,15.8426]
[1720752846163,14.42,138.31,138.28,15.8426]
[1720752846366,14.08,138.32,138.28,15.8426]
[1720752851383,14.08,138.31,138.28,15.8426]
[1720752851569,0.17,138.3,138.28,15.8426]
[1720752851888,0.34,138.3,138.28,15.8426]
[1720752854591,14.08,138.31,138.29,1.44551145]
[1720752854817,14.08,138.33,138.29,1.44551145]
[1720752855083,0.34,138.32,138.29,1.44551145]
[1720752856487,14.42,138.32,138.29,1.44551145]
[1720752856690,14.42,138.32,138.28,15.8426]
[1720752858283,14.08,138.31,138.28,15.8426]
[1720752859967,0.34,138.3,138.28,15.8426]
[1720752860168,14.42,138.3,138.28,15.8426]
[1720752861084,0.34,138.3,138.28,15.8426]
[1720752861292,14.08,138.31,138.28,15.8426]
[1720752861481,14.08,138.33,138.28,29.9226]
[1720752861687,0.17,138.32,138.29,1.44501023]
[1720752861986,0.34,138.32,138.29,1.44501023]
[1720752862192,0.17,138.32,138.29,1.44501023]
[1720752862387,0.17,138.33,138.29,1.44501023]
[1720752862579,0.34,138.33,138.29,1.44501023]
[1720752862774,7.56527703,138.34,138.3,7.5433996]
[1720752862980,14.08,138.39,138.33,14.08]
[1720752863199,14.08,138.38,138.34,1.44546652]
[1720752863789,7.55949169,138.4,138.35,22.4618]
[1720752863995,21.63949169,138.4,138.36,1.4452496]
[1720752864499,14.08,138.39,138.35,22.4618]
[1720752864817,14.08,138.38,138.35,22.4618]
[1720752865101,14.08,138.37,138.32,16.3644]
[1720752865408,14.08,138.36,138.32,16.3644]
[1720752865598,14.08,138.39,138.32,16.3644]
[1720752865804,14.08,138.35,138.32,16.3644]
[1720752866002,0.34,138.36,138.32,16.3644]
[1720752866182,14.08,138.35,138.32,16.3644]
[1720752866381,7.55949169,138.4,138.32,16.3644]
[1720752866576,14.25,138.39,138.33,14.08]
[1720752867599,0.17,138.38,138.33,14.08]
[1720752867810,14.25,138.38,138.33,14.08]
[1720752867977,0.17,138.37,138.33,14.08]
[1720752868405,14.25,138.37,138.32,30.4444]
[1720752868592,0.17,138.37,138.33,0.99245957]
[1720752869489,7.55949169,138.4,138.33,0.99245957]
[1720752870010,14.27903804,138.39,138.33,0.99245957]
[1720752870188,7.55949169,138.4,138.33,0.99245957]
[1720752870712,14.61850864,138.39,138.33,0.99245957]
[1720752870899,0.34,138.39,138.33,0.99245957]
[1720752872340,7.55949169,138.4,138.34,22.9046]
[1720752872520,7.55949169,138.4,138.35,1.00200158]
[1720752872698,7.55949169,138.4,138.36,1.00192916]
[1720752873993,7.55949169,138.4,138.37,1.08195676]
[1720752874220,7.55949169,138.4,138.35,1.38238432]
[1720752874420,7.55949169,138.4,138.36,1.3822844]
[1720752874913,7.55949169,138.4,138.37,22.9046]
[1720752875215,6.80459772,138.44,138.38,1.38208461]
[1720752875398,7.55768386,138.45,138.38,1.38208461]
[1720752875823,14.28673275,138.44,138.38,1.38208461]
[1720752876002,14.28673275,138.43,138.38,1.38208461]
[1720752876204,14.78048386,138.45,138.38,1.38208461]
[1720752876504,14.45457834,138.44,138.38,1.38208461]
[1720752876717,0.17,138.44,138.38,1.38208461]
[1720752877230,45.34,138.44,138.38,1.38208461]
[1720752877713,0.34,138.44,138.38,1.38208461]
[1720752878113,45.34,138.44,138.38,1.38208461]
[1720752878309,7.55768386,138.45,138.37,22.9046]
[1720752879500,45.34,138.44,138.37,22.9046]
[1720752880014,0.34,138.44,138.37,22.9046]
[1720752880729,26.81796158,138.47,138.37,22.9046]
[1720752881025,14.28853014,138.46,138.39,16.482]
[1720752881205,14.36714035,138.47,138.4,6.5931]
[1720752881799,14.36714035,138.47,138.41,0.80559481]
[1720752882401,14.36714035,138.47,138.43,6.0304]
[1720752882601,37.67267213,138.49,138.44,46.44317685]
[1720752882797,7.2176,138.55,138.44,1.44317685]
[1720752883025,7.55909819,138.51,138.44,1.44317685]
[1720752883247,7.2196,138.52,138.43,6.0304]
[1720752883428,14.29524912,138.51,138.43,6.0304]
[1720752883600,7.55740417,138.5,138.43,6.0304]
[1720752883807,0.34,138.49,138.43,6.0304]
[1720752884104,45.34,138.49,138.43,6.0304]
[1720752884513,0.34,138.49,138.43,6.0304]
[1720752884909,45.34,138.49,138.43,6.0304]
[1720752885102,0.34,138.49,138.43,6.0304]
[1720752885717,45.34,138.49,138.43,6.0304]
[1720752886323,0.34,138.49,138.43,6.0304]
[1720752886730,0.34,138.49,138.43,7.47390793]
[1720752886902,45.34,138.49,138.43,7.47390793]
[1720752890034,45.34,138.49,138.43,6.0304]
[1720752890830,52.5607,138.49,138.43,6.0304]
[1720752891221,45.34,138.49,138.43,6.0304]
[1720752891934,52.5608,138.49,138.43,6.0304]
[1720752892356,28.15,138.48,138.42,15.7553]
[1720752892634,14.06,138.43,138.42,15.7553]
[1720752894742,7.56161401,138.45,138.42,15.7553]
[1720752895038,0.34,138.44,138.42,15.7553]
[1720752903143,0.34,138.44,138.4,6.41]
[1720752903351,45.34,138.44,138.4,6.41]
[1720752903545,45.34,138.44,138.38,15.9533]
[1720752904346,7.55838791,138.43,138.38,15.9533]
[1720752904534,0.34,138.42,138.38,15.9533]
[1720752905829,7.55838791,138.43,138.38,15.9533]
[1720752906142,3.27701236,138.47,138.39,6.6173]
[1720752906333,10.83617067,138.47,138.39,6.6173]
[1720752906826,10.83617067,138.47,138.4,1.44273796]
[1720752907427,10.83617067,138.47,138.41,16.6612]
[1720752907633,7.55915831,138.47,138.42,1.4425295]
[1720752908035,7.55915831,138.47,138.42,1.44242529]
[1720752908331,7.55915831,138.47,138.41,16.6612]
[1720752908943,0.34,138.46,138.42,1.38295219]
[1720752909643,0.34,138.46,138.41,16.6612]
[1720752909835,45.34,138.46,138.41,16.6612]
[1720752910041,0.34,138.46,138.41,16.6612]
[1720752911629,45.34,138.46,138.41,16.6612]
[1720752911945,42.40720793,138.45,138.38,15.6671]
[1720752912251,14.28720793,138.44,138.38,15.6671]
[1720752912457,59.62720793,138.43,138.38,15.6671]
[1720752912630,45.34,138.43,138.38,15.6671]
[1720752913145,0.34,138.43,138.38,15.6671]
[1720752913564,0.34,138.43,138.39,1.4449795]
[1720752913768,45.34,138.44,138.39,1.4446678]
[1720752914561,14.07,138.41,138.39,1.4446678]
[1720752914769,14.07,138.41,138.38,17.1117678]
[1720752915675,23.97773506,138.45,138.38,17.1117678]
[1720752915837,14.07,138.42,138.39,1.4445634]
[1720752916038,23.97773506,138.45,138.38,15.6671]
[1720752916039,14.07,138.43,138.4,1.44445902]
[1720752916345,7.2208,138.49,138.4,1.44445902]
[1720752916346,8.41535762,138.49,138.41,6.4724]
[1720752916546,14.07,138.45,138.42,1.44425039]
[1720752916845,14.07,138.45,138.42,1.4443269]
[1720752917053,8.41535762,138.49,138.42,1.4443269]
[1720752917054,14.07,138.44,138.42,1.4443269]
[1720752917652,14.07,138.45,138.43,1.44422256]
[1720752918038,8.41535762,138.49,138.43,1.44422256]
[1720752918351,28.36159872,138.46,138.43,1.44422256]
[1720752918561,14.07,138.46,138.43,1.44422256]
[1720752918862,14.07,138.46,138.41,6.4724]
[1720752918863,8.41535762,138.49,138.44,1.44401455]
[1720752919063,28.36163612,138.46,138.42,1.44422277]
[1720752919234,14.07,138.46,138.43,1.44447006]
[1720752919443,2.8195177,138.5,138.43,1.44447006]
[1720752919641,28.4284041,138.51,138.44,15.766]
[1720752919854,14.07,138.47,138.45,1.44437636]
[1720752924541,7.55223243,138.5,138.45,1.44437636]
[1720752924741,14.63377539,138.49,138.46,1.44427251]
[1720752924971,14.29377539,138.48,138.46,1.44427251]
[1720752925758,14.07,138.5,138.47,6.2442]
[1720752925957,14.2969469,138.49,138.47,6.2442]
[1720752926155,14.07,138.5,138.47,6.2442]
[1720752926340,28.36678448,138.49,138.47,6.2442]
[1720752926544,14.07,138.49,138.47,6.2442]
[1720752927062,0.34,138.51,138.47,6.2442]
[1720752927365,28.36933445,138.5,138.47,6.2442]
[1720752927664,14.07,138.5,138.47,6.2442]
[1720752932164,14.07,138.49,138.46,1.44427251]
[1720752932377,14.07,138.48,138.45,1.44414099]
[1720752932573,14.07,138.49,138.45,1.44414099]
[1720752932886,0.34,138.51,138.46,1.44403668]
[1720752933070,14.07,138.49,138.46,1.44403668]
[1720752933752,0.17,138.48,138.45,1.44403668]
[1720752934072,14.07,138.49,138.46,1.44424774]
[1720752935056,14.07,138.49,138.45,1.44424775]
[1720752935258,14.07,138.49,138.46,1.44424775]
[1720752935868,14.07,138.48,138.44,17.21029875]
[1720752936066,14.07,138.45,138.4,15.4166]
[1720752936358,14.07,138.44,138.4,15.4166]
[1720752936688,14.24,138.44,138.4,15.4166]
[1720752936976,14.07,138.44,138.4,15.4166]
[1720752937668,14.07,138.44,138.41,1.44371573]
[1720752937872,14.07,138.45,138.41,1.44371573]
[1720752938172,0.17,138.44,138.41,1.44371573]
[1720752938373,14.24,138.44,138.4,15.4166]
[1720752939660,14.24,138.44,138.4,16.85978812]
[1720752939885,14.07,138.43,138.4,16.8614754]
[1720752940069,14.24,138.42,138.4,15.4166]
[1720752940273,0.17,138.42,138.36,21.8099]
[1720752940479,14.07,138.4,138.36,21.8099]
[1720752940782,14.07,138.4,138.36,22.82365015]
[1720752940957,0.17,138.39,138.36,22.82365015]
[1720752941579,0.17,138.4,138.36,23.25517833]
[1720752941789,0.17,138.41,138.36,37.32517833]
[1720752941988,14.07,138.41,138.36,37.32517833]
[1720752942281,14.07,138.41,138.36,35.8799]
[1720752942676,14.41,138.4,138.36,21.8099]
[1720752942981,0.17,138.4,138.37,0.57460327]
[1720752943477,14.41,138.4,138.37,0.57460327]
[1720752943654,0.17,138.4,138.37,1.44521252]
[1720752943855,0.34,138.4,138.37,1.44521252]
[1720752944175,14.41,138.4,138.36,21.8099]
[1720752945671,3.96253497,138.43,138.36,21.8099]
[1720752945859,14.07,138.43,138.37,14.07]
[1720752946061,14.07,138.44,138.38,14.07]
[1720752947167,14.07,138.43,138.38,14.07]
[1720752947369,14.07,138.43,138.36,21.8099]
[1720752947685,14.07,138.42,138.37,14.07]
[1720752947879,14.07,138.42,138.38,1.17162994]
[1720752948186,14.07,138.43,138.38,15.24162994]
[1720752950288,14.07,138.42,138.37,1.17154527]
[1720752950577,0.34,138.41,138.37,15.24154527]
[1720752950781,27.56277722,138.45,138.37,15.24154527]
[1720752950981,0.17,138.44,138.37,15.24154527]
[1720752951171,14.07,138.43,138.38,14.07]
[1720752951365,0.34,138.42,138.39,1.17137595]
[1720752952959,0.17,138.42,138.4,1.17129131]
[1720752953164,14.07,138.43,138.4,1.17129131]
[1720752953360,7.54751511,138.45,138.41,16.5277]
[1720752953571,14.07,138.45,138.42,1.17112208]
[1720752954171,14.07,138.44,138.41,22.751]
[1720752956089,14.07,138.43,138.41,22.751]
[1720752956462,14.07,138.42,138.41,16.5277]
[1720752956667,14.07,138.42,138.38,21.6415]
[1720752958564,0.17,138.41,138.38,21.6415]
[1720752959170,14.24,138.41,138.38,21.6415]
[1720752960179,0.17,138.41,138.38,21.6415]
[1720752965581,14.24,138.41,138.38,21.6415]
[1720752966006,14.07,138.4,138.38,21.6415]
[1720752966492,0.17,138.41,138.38,21.6415]
[1720752966697,14.24,138.41,138.38,21.6415]
[1720752968302,0.17,138.42,138.38,21.6415]
[1720752968509,14.24,138.43,138.38,35.7115]
[1720752969310,14.07,138.43,138.38,21.6415]
[1720752969517,14.24,138.44,138.39,14.07]
[1720752970389,7.55908416,138.46,138.41,14.07]
[1720752970590,14.07,138.46,138.42,1.43556866]
[1720752970894,14.07,138.46,138.43,1.4357294]
[1720752971686,14.07,138.46,138.42,1.4357294]
[1720752971884,0.17,138.45,138.43,1.44460022]
[1720752972697,14.24,138.45,138.43,1.44460022]
[1720752972886,14.24,138.45,138.41,1.44460022]
[1720752974105,14.24,138.44,138.39,14.07]
[1720752974814,14.24,138.44,138.38,21.6415]
[1720752975112,14.24,138.44,138.39,14.07]
[1720752977610,14.07,138.43,138.38,21.6415]
[1720752977914,14.07,138.39,138.34,15.8075]
[1720752978085,14.07,138.36,138.34,15.8075]
[1720752978282,14.07,138.36,138.31,36.3503]
[1720752978910,14.24,138.37,138.32,1.44553946]
[1720752979087,0.17,138.36,138.33,1.44543496]
[1720752980016,0.17,138.37,138.33,1.44543496]
[1720752980212,14.07,138.37,138.33,1.44543496]
[1720752980421,0.17,138.36,138.34,1.44533046]
[1720752980586,0.17,138.36,138.32,1.44545027]
[1720752980792,0.17,138.36,138.33,1.44534579]
[1720752981332,0.17,138.37,138.33,1.44534579]
[1720752981823,0.17,138.37,138.32,1.44534579]
[1720752982000,0.17,138.37,138.33,1.4452413]
[1720752983085,0.17,138.37,138.34,1.44513682]
[1720752983292,0.17,138.37,138.32,1.44553479]
[1720752983520,0.17,138.37,138.33,1.44543029]
[1720752984523,0.17,138.37,138.32,1.44543029]
[1720752984699,0.17,138.37,138.33,1.44532579]
[1720752986109,0.17,138.37,138.34,1.4452213]
[1720752986315,0.17,138.37,138.31,15.8075]
[1720752986696,80.5473,138.37,138.28,21.6186]
[1720752986896,0.17,138.36,138.28,21.6186]
[1720752991095,0.17,138.36,138.28,15.0598]
[1720752991510,7.55698647,138.35,138.28,15.0598]
[1720752991813,0.34,138.34,138.28,15.0598]
[1720752993614,45.34,138.34,138.28,15.0598]
[1720752993822,0.34,138.34,138.28,15.0598]
[1720752999508,7.55698647,138.35,138.28,15.0598]
[1720752999910,7.55698647,138.35,138.29,6.1969]
[1720753000118,46.433486,138.4,138.3,45.0]
[1720753000334,7.55471952,138.37,138.3,45.0]
[1720753000533,56.89929875,138.4,138.3,45.0]
[1720753000906,7.54880842,138.37,138.29,6.1969]
[1720753001225,10.46631275,138.39,138.29,6.1969]
[1720753001425,7.55507727,138.36,138.29,6.1969]
[1720753001626,10.46631275,138.39,138.29,6.1969]
[1720753001807,7.55507122,138.36,138.29,6.1969]
[1720753002133,0.17,138.37,138.29,6.1969]
[1720753002427,7.55508131,138.36,138.29,6.1969]
[1720753002611,14.25,138.35,138.3,14.08]
[1720753003603,0.17,138.35,138.3,14.08]
[1720753003809,21.63533213,138.36,138.3,14.08]
[1720753004014,21.63533213,138.36,138.31,14.08]
[1720753004637,21.63533213,138.36,138.3,14.08]
[1720753004959,14.42,138.35,138.29,20.2769]
[1720753006127,14.42,138.35,138.3,14.08]
[1720753006816,0.34,138.35,138.3,14.08]
[1720753007139,0.17,138.35,138.3,14.08]
[1720753007456,14.25,138.35,138.3,14.08]
[1720753010040,14.25,138.35,138.31,1.25217684]
[1720753011951,14.25,138.35,138.3,14.08]
[1720753012157,14.25,138.35,138.29,6.1969]
[1720753012158,14.08,138.34,138.29,6.1969]
[1720753012356,14.08,138.34,138.29,20.2769]
[1720753013159,21.63574846,138.34,138.29,20.2769]
[1720753014555,7.55574846,138.34,138.3,14.08]
[1720753014728,0.17,138.35,138.31,14.08]
[1720753014933,0.17,138.35,138.31,15.52267082]
[1720753015152,0.17,138.35,138.31,1.44267082]
[1720753015361,14.25,138.35,138.31,1.44267082]
[1720753017040,14.25,138.35,138.3,14.08]
[1720753017357,14.25,138.35,138.29,20.2769]
[1720753021753,14.25,138.35,138.3,1.44574886]
[1720753021951,14.08,138.32,138.26,1.44611507]
[1720753022156,14.08,138.32,138.27,1.44601048]
[1720753022343,0.17,138.31,138.27,15.52601048]
[1720753022540,0.17,138.31,138.27,1.44601048]
[1720753022852,0.17,138.31,138.27,15.52601048]
[1720753023056,14.25,138.34,138.28,14.08]
[1720753023226,14.25,138.34,138.24,43.6073]
[1720753023227,14.08,138.32,138.27,14.08]
[1720753023431,0.17,138.31,138.27,14.08]
[1720753024133,0.17,138.31,138.28,1.44611868]
[1720753024554,0.17,138.31,138.27,14.08]
[1720753026348,0.34,138.31,138.27,14.08]
[1720753026657,0.34,138.31,138.24,21.8673]
[1720753026955,14.42,138.31,138.26,14.08]
[1720753027158,0.34,138.31,138.27,15.52530252]
[1720753027641,0.34,138.31,138.27,1.44530252]
[1720753028559,0.34,138.31,138.27,15.52530252]
[1720753028859,0.34,138.31,138.28,1.44613075]
[1720753032058,7.55660367,138.33,138.28,15.52613075]
[1720753032363,14.42,138.34,138.29,15.52595432]
[1720753032655,0.34,138.34,138.29,14.08]
[1720753032863,14.42,138.34,138.29,14.08]
[1720753033062,14.42,138.34,138.3,1.44550441]
[1720753035047,13.04244825,138.33,138.3,1.44550441]
[1720753035252,13.04244825,138.32,138.3,1.44550441]
[1720753035457,13.04244825,138.31,138.3,1.44550441]
[1720753035858,0.34,138.34,138.3,15.52550441]
[1720753036062,13.04172412,138.33,138.31,15.52539989]
[1720753036361,0.34,138.34,138.31,15.52539989]
[1720753036362,13.04172412,138.32,138.31,15.52539989]
[1720753036567,13.04172412,138.32,138.3,15.5253999]
[1720753036748,13.04172412,138.31,138.3,15.5253999]
[1720753037062,13.96681275,138.39,138.3,15.5253999]
[1720753037248,14.08,138.37,138.32,14.08]
[1720753037455,27.29164006,138.36,138.33,1.44508645]
[1720753037651,27.12164006,138.35,138.29,22.2762]
[1720753037847,27.12164006,138.35,138.3,14.08]
[1720753037848,13.21164006,138.34,138.3,14.08]
[1720753038044,27.12164006,138.33,138.25,42.5712]
[1720753038360,13.04164006,138.32,138.27,14.08]
[1720753038759,27.12164006,138.32,138.27,14.08]
[1720753038958,13.04164006,138.31,138.27,14.08]
[1720753039459,14.08,138.32,138.27,14.08]
[1720753039766,13.04268188,138.31,138.27,14.08]
[1720753039967,14.08,138.32,138.27,14.08]
[1720753040148,13.04253368,138.31,138.27,14.08]
[1720753040348,14.08,138.32,138.27,14.08]
[1720753040548,13.0425353,138.31,138.25,42.5712]
[1720753040868,14.08,138.32,138.26,14.08]
[1720753041049,13.3826094,138.31,138.26,14.08]
[1720753041244,0.34,138.31,138.26,14.08]
[1720753042962,0.34,138.31,138.27,14.08]
[1720753046275,0.34,138.32,138.27,14.08]
[1720753046466,13.04265799,138.31,138.27,14.08]
[1720753046668,0.34,138.32,138.27,14.08]
[1720753046973,13.04266442,138.31,138.27,14.08]
[1720753047163,14.42,138.32,138.27,14.08]
[1720753047467,13.04266909,138.31,138.27,14.08]
[1720753047675,7.88937215,138.32,138.27,14.08]
[1720753047969,13.04267017,138.31,138.27,14.08]
[1720753048188,7.88937215,138.32,138.27,14.08]
[1720753048356,13.04267315,138.31,138.28,14.08]
[1720753048552,7.88937215,138.32,138.28,14.08]
[1720753048769,13.0426699,138.31,138.28,14.08]
[1720753048986,7.88937215,138.32,138.28,14.08]
[1720753049280,13.0426699,138.31,138.28,14.08]
[1720753049667,7.88937215,138.32,138.28,14.08]
[1720753049867,13.04259742,138.31,138.28,14.08]
[1720753050085,7.88937215,138.32,138.27,14.08]
[1720753050387,13.04267288,138.31,138.29,14.08]
[1720753050571,0.34,138.32,138.3,14.08]
[1720753050880,13.04250075,138.31,138.3,14.08]
[1720753051377,13.04250075,138.31,138.27,1.44619932]
[1720753051583,14.08,138.34,138.27,1.44619932]
[1720753051778,13.38237941,138.33,138.27,1.44619932]
[1720753052092,13.04237941,138.32,138.27,1.44619932]
[1720753052864,13.04237941,138.32,138.31,14.08]
[1720753053065,20.7464,138.38,138.31,14.08]
[1720753053278,27.31709685,138.37,138.33,14.08]
[1720753053497,13.04060466,138.36,138.33,14.08]
[1720753053673,13.04060466,138.35,138.33,14.08]
[1720753053867,13.04060466,138.34,138.33,14.08]
[1720753054892,13.04060466,138.34,138.32,14.08]
[1720753055189,14.08,138.36,138.31,14.08]
[1720753055374,13.38047597,138.35,138.31,14.08]
[1720753055569,13.04047597,138.34,138.31,14.08]
[1720753055771,0.34,138.35,138.31,14.08]
[1720753055981,13.04099779,138.34,138.31,14.08]
[1720753056184,13.04099779,138.33,138.31,14.08]
[1720753056389,0.34,138.35,138.31,14.08]
[1720753056592,13.0410735,138.34,138.31,14.08]
[1720753056781,13.0410735,138.33,138.31,14.08]
[1720753056968,0.34,138.35,138.31,14.08]
[1720753057168,13.04107026,138.34,138.31,14.08]
[1720753057467,0.34,138.35,138.31,14.08]
[1720753057468,13.04107026,138.33,138.31,14.08]
[1720753057779,0.34,138.35,138.31,14.08]
[1720753057988,13.04096985,138.34,138.31,14.08]
[1720753058289,13.04096985,138.33,138.31,14.08]
[1720753058588,0.34,138.35,138.31,14.08]
[1720753058775,13.04099617,138.34,138.31,14.08]
[1720753059092,13.04099617,138.33,138.31,14.08]
[1720753059272,13.04099617,138.34,138.31,14.08]
[1720753059890,0.34,138.35,138.31,14.08]
[1720753060189,13.04077554,138.34,138.31,14.08]
[1720753060386,0.34,138.35,138.31,14.08]
[1720753060589,13.04077392,138.34,138.31,14.08]
[1720753060787,0.17,138.35,138.3,16.5951]
[1720753060980,13.04077554,138.34,138.32,14.08]
[1720753061287,0.34,138.36,138.32,14.08]
[1720753061466,13.04068282,138.35,138.32,14.08]
[1720753061668,0.34,138.36,138.31,15.52421058]
[1720753062698,0.34,138.36,138.32,14.08]
[1720753062988,0.34,138.36,138.31,14.08]
[1720753063692,14.42,138.36,138.31,14.08]
[1720753065985,0.34,138.36,138.31,14.08]
[1720753066194,0.34,138.36,138.32,14.08]
[1720753066770,0.34,138.36,138.31,14.08]
[1720753067188,0.34,138.36,138.32,14.08]
[1720753067578,0.34,138.36,138.3,16.5951]
[1720753067779,14.08,138.35,138.3,16.5951]
[1720753067976,0.34,138.34,138.3,16.5951]
[1720753068580,0.34,138.34,138.3,30.6751]